Cogmind - Beta 16 @@@ ROGUE MODE // 2025.12.26 @ 06:51:58 Player: Moose Result: Destroyed by IW-3ZR(R) with Subdweller Laser Performance ------------- Evolutions (0) 0 Regions Visited (2) 400 Robots Destroyed (13) 65 Value Destroyed (498) 498 Prototype IDs (0) 0 Alien Tech Used (0) 0 Bonus (-54) -54 TOTAL SCORE: 909 Bonus ------- Friendly Fire -54 Cogmind --------- Core Integrity 0/250 Matter 9/300 Energy 95/250 System Corruption 0% Temperature Cool (6) Movement Treading (240) Ox1 Location -10/Subcaves Parts ------- > --- POWER (1) -------- Ion Engine > --- PROPULSION (2) --- Light Treads > --- UTILITY (2) ------ Large Storage Unit > --- WEAPON (2) ------- Rocket Launcher Rocket Launcher > --- INVENTORY (15) --- Light Ion Engine Cooling System Structural Scanner Signal Interpreter Improved Terrain Scanner Terrain Scan Processor Light Armor Plating Subdweller Beam Cannon Light Assault Rifle Light Cannon Peak State ------------ > --- POWER ------------ Ion Engine > --- PROPULSION ------- Light Treads Light Treads > --- UTILITY ---------- Large Storage Unit Improved Terrain Scanner > --- WEAPON ----------- Assault Rifle Rocket Launcher > --- INVENTORY -------- Ion Engine Light Ion Engine Light Treads Cooling System Structural Scanner Sensor Array Signal Interpreter Signal Interpreter Terrain Scan Processor Light Armor Plating Scrap Shield Light Assault Rifle Light Cannon Rocket Launcher [Rating: 12] Favorites ----------- Power Ion Engine Engine Ion Engine Propulsion Light Treads Treads Light Treads Leg Aluminum Leg Utility Improved Terrain Scanner Device Improved Terrain Scanner Storage Small Storage Unit Weapon Assault Rifle Energy Gun Small Laser Ballistic Gun Assault Rifle Launcher Rocket Launcher Build | -11 -10 -10 ------- Run | Yrd Mat Sub Slots Evolved . | . . . Power . | . . . Propulsion . | . . . Utility . | . . . Weapon . | . . . Parts Attached 16 | 7 5 4 Power 2 | 1 . 1 Engine 2 | 1 . 1 Core . | . . . Reactor . | . . . Propulsion 5 | 2 2 1 Treads 3 | 2 . 1 Leg 2 | . 2 . Wheel . | . . . Hover . | . . . Flight . | . . . Utility 5 | 2 2 1 Device 2 | 1 . 1 Storage 3 | 1 2 . Processor . | . . . Hackware . | . . . Protection . | . . . Artifact . | . . . Weapon 4 | 2 1 1 Energy Gun 1 | 1 . . Energy Cannon . | . . . Ballistic Gun 1 | 1 . . Ballistic Cannon . | . . . Launcher 2 | . 1 1 Special Weapon . | . . . Impact Weapon . | . . . Slashing Weapon . | . . . Piercing Weapon . | . . . Special Melee Weapon . | . . . Unidentified Prototypes . | . . . Parts Lost 5 | . . 5 Power 1 | . . 1 Propulsion 2 | . . 2 Utility 1 | . . 1 Weapon 1 | . . 1 Highest Loss Streak 5 | . . 5 To Critical Strikes . | . . . Average Backups 9 | 4 8 13 Power 1 | 1 1 1 Propulsion 1 | 1 1 . Utility 4 | . 3 7 Weapon 2 | 1 2 3 Tool/Special . | . . . Unused Backups 16 | 1 3 12 Power 1 | . . 1 Propulsion 1 | 1 . . Utility 9 | . 1 8 Weapon 5 | . 2 3 Tool/Special . | . . . Average Slot Usage (%) 98 | . 99 97 Engine 13 | . 14 12 Treads 27 | . 27 26 Device 13 | . 14 13 Storage 14 | . 14 14 Energy Gun 1 | . 1 . Ballistic Gun 14 | . 14 14 Launcher 12 | . 11 14 Peak Build Rating 12 | 9 11 12 Average Rating 10 | 5 10 10 On Entrance 6 | . 9 11 Avg Prop Armor Cover (%) . | . . . Naked Turns . | . . . Heaviest Build 32 | 14 32 32 Greatest Support 40 | 40 40 40 Greatest Overweight (x) 8 | . . 8 Average Overweight (x) . | . . . Largest Inventory Capacity 15 | 8 15 15 Average Capacity 11 | 7 10 15 Most Carried 15 | 8 13 15 Average Carried 9 | 4 8 14 Final Capacity 15 | 8 15 15 Final Carried 13 | 5 13 10 Class Distribution -------------------- 100% | Mutant Dominant Class ---------------- Mutant | -10/Materials Mutant | -10/Subcaves Resources | -11 -10 -10 ----------- Run | Yrd Mat Sub Matter Collected 434 | 261 141 32 Remotely . | . . . Salvage Created 285 | 19 239 27 Parts 19 | 2 16 1 Haulers Intercepted . | . . . Recyclers Shooed 1 | . 1 . Parts Field Recycled . | . . . Retrieved Matter . | . . . Parts Self-Destructed . | . . . Prevented . | . . . Parts Restored . | . . . Kills | -11 -10 -10 ------- Run | Yrd Mat Sub Combat Hostiles Destroyed 11 | . 10 1 Guns 1 | . 1 . AOE 10 | . 9 1 Classes Destroyed 4 | 1 2 1 Builder 1 | . 1 . Tunneler 1 | 1 . . Grunt 10 | . 10 . Subdweller 1 | . . 1 Best Kill Streak 4 | 1 4 1 Combat Bots Only 3 | . 3 1 Max Kills in Single Turn 2 | 1 2 1 Gunslinging . | . . . Exploded 2 | . 2 1 Melee . | . . . Uniques/NPCs Destroyed . | . . . Combat | -11 -10 -10 -------- Run | Yrd Mat Sub Hostile Shots Fired 64 | . 33 31 Missed 22 | . 11 11 Hits 42 | . 22 20 Projectile 42 | . 22 20 Critical Strikes 1 | . 1 . Damage Taken 931 | . 340 591 Core 264 | . 104 160 Absorbed by Shields . | . . . Regen/Repaired (Parts) 37 | . 37 . Core Remaining (%) 100 | 100 . . Volleys Fired 29 | 3 21 5 Largest 2 | 2 2 2 Hottest 66 | 60 53 66 Shots Fired 58 | 6 42 10 Gun 31 | 6 21 4 Cannon . | . . . Launcher 27 | . 21 6 Special . | . . . Kinetic 28 | 3 21 4 Thermal 3 | 3 . . Explosive 27 | . 21 6 Electromagnetic . | . . . Robot Hit Streak 8 | 3 4 8 Robot Miss Streak 4 | 1 4 2 Penetration Max . | . . . Secondary Targets . | . . . Shots Hit Robots 36 | 4 24 8 Core Hits 34 | 2 24 8 Critical Kills . | . . . Critical Parts Destroyed 1 | . 1 . Critical Strikes 1 | . 1 . Destroy 1 | . 1 . Melee Attacks . | . . . Impact . | . . . Slashing . | . . . Piercing . | . . . Sneak Attacks . | . . . Combat Hostiles . | . . . Follow-up Attacks . | . . . Damage Inflicted 1768 | 50 1126 592 Guns 265 | 46 183 36 Cannons . | . . . Explosions 1488 | . 939 549 Melee . | . . . Ramming 15 | 4 4 7 Kinetic 243 | 24 183 36 Thermal 22 | 22 . . Explosive 1488 | . 939 549 Electromagnetic . | . . . Impact . | . . . Slashing . | . . . Piercing . | . . . Highest Corruption . | . . . Average Corruption . | . . . Corruption Purged . | . . . Corruption Blocked . | . . . Overload Shots . | . . . Overflow Damage 10 | . 10 . Projectiles . | . . . Explosions 10 | . 10 . Melee . | . . . Knockbacks 1 | . . 1 Impact 1 | . . 1 Kinetic . | . . . Secondary . | . . . Self-Inflicted Damage 184 | . 83 101 Shots 7 | . 4 3 Rammed 7 | 3 2 2 Targets Rammed 7 | 3 2 2 Kicked . | . . . Crushed . | . . . Highest Temperature 15 | . 15 . Average Temperature 6 | . 6 . Received Heat Transfer 267 | . 162 105 Siege Activations . | . . . Martial Activations . | . . . Shielding Activations . | . . . Robots Disrupted . | . . . Combat Hostiles . | . . . Robots Corrupted . | . . . Combat Hostiles . | . . . Parts Fried . | . . . Impact Corruptions . | . . . Robots Melted . | . . . Combat Hostiles . | . . . Parts Melted . | . . . Heat Transferred 50 | 50 . . Parts Sabotaged . | . . . Parts Stolen . | . . . Parts Stripped . | . . . Power Chain Reactions . | . . . Alert | -11 -10 -10 ------- Run | Yrd Mat Sub Maximum Alert Level 1 | . 1 . Low Security (%) 75 | 100 70 . Level 1 24 | . 29 . Level 2 . | . . . Level 3 . | . . . Level 4 . | . . . Level 5 . | . . . High Security . | . . . Max Security . | . . . Peak Influence 271 | 5 271 . Initial . | . . . Average 93 | . 110 . Influence Increases 487 | 5 482 . Destroy 0b10 Robot/C 200 | . 200 . Destroy 0b10 Robot/NC 10 | 5 5 . Destroy Leader 50 | . 50 . Successful Hack 10 | . 10 . Disable Machine 120 | . 120 . Destroy Structure 97 | . 97 . Influence Decreases 487 | 5 401 81 Entered New Map 40 | . . 40 Time Decay 297 | 5 251 41 Purge Threat 150 | . 150 . Squads Dispatched 4 | . 4 . Investigation 3 | . 3 . Extermination . | . . . Reinforcement 1 | . 1 . Assault . | . . . Garrison . | . . . Intercept . | . . . Searches Triggered . | . . . Construction Impeded . | . . . Haulers Reinforced . | . . . Active Scanning Responses . | . . . Cargo Convoy Interrupts . | . . . Stealth | -11 -10 -10 --------- Run | Yrd Mat Sub Distress Signals 1 | . 1 . Communications Jammed . | . . . Distress Signals . | . . . Times Spotted 24 | . 15 9 Peak Tracking Total 5 | . 3 5 Tactical Retreats . | . . . Traps | -11 -10 -10 ------- Run | Yrd Mat Sub Traps Triggered 1 | . 1 . Indirectly . | . . . Trap Hack Attempts . | . . . Triggered . | . . . Disarmed . | . . . Reprogrammed . | . . . Reused . | . . . Traps Extracted . | . . . Installed . | . . . Triggered . | . . . Machines | -11 -10 -10 ---------- Run | Yrd Mat Sub Machines Disabled 8 | . 8 . Max in Single Turn 2 | . 2 . Machines Repaired . | . . . Machines Dismantled . | . . . Machines Sabotaged . | . . . Overloaded Fab Kills . | . . . Hacking | -11 -10 -10 --------- Run | Yrd Mat Sub Machines Accessed 4 | . 4 . Terminals 3 | . 3 . Fabricators . | . . . Repair Stations 1 | . 1 . Recycling Units . | . . . Scanalyzers . | . . . Garrison Access . | . . . Total Hacks 14 | . 14 . Successful 8 | . 8 . Failed 6 | . 6 . Catastrophic 1 | . 1 . Database Lockouts . | . . . Manual . | . . . Terminals 11 | . 11 . Fabricators . | . . . Repair Stations 3 | . 3 . Recycling Units . | . . . Scanalyzers . | . . . Garrison Access . | . . . Terminal Hacks 6 | . 6 . Record 1 | . 1 . Alert Level 1 | . 1 . Unreport Threat 1 | . 1 . Reinforcement Status 1 | . 1 . Hauler Manifests 1 | . 1 . Registered Components 1 | . 1 . Fabricator Hacks . | . . . Repair Station Hacks 2 | . 2 . Scan Component 1 | . 1 . Repair 1 | . 1 . Recycling Unit Hacks . | . . . Scanalyzer . | . . . Garrison Access Hacks . | . . . Unauthorized Hacks . | . . . Terminals . | . . . Fabricators . | . . . Repair Stations . | . . . Recycling Units . | . . . Scanalyzers . | . . . Garrison Access . | . . . Data Cores Recovered . | . . . Used . | . . . Hacking Detections 3 | . 3 . Full Trace Events 2 | . 2 . Feedback Events . | . . . Feedback Blocked . | . . . Robot Schematics Acquired . | . . . Robots Built . | . . . Authchips . | . . . Time . | . . . Total Robot Build Rating . | . . . Part Schematics Acquired . | . . . Parts Built . | . . . Authchips . | . . . Time . | . . . Total Part Build Rating . | . . . Part Studies Acquired . | . . . Parts Repaired 1 | . 1 . Time 32 | . 32 . Parts Recycled . | . . . Recycled Matter . | . . . Retrieved Matter . | . . . Retrieved Components . | . . . Parts Scanalyzed . | . . . Part Schematics Acquired . | . . . Parts Damaged . | . . . Bothacking | -11 -10 -10 ------------ Run | Yrd Mat Sub Used RIF Installer . | . . . Robots Hacked . | . . . Non-combat . | . . . Combat . | . . . Robot Hacks Applied . | . . . Relay Couplers Released . | . . . Fabnet Peak Effective % . | . . . Robots Rewired . | . . . Allies Hacked . | . . . Hacks Repelled . | . . . Allies | -11 -10 -10 -------- Run | Yrd Mat Sub Total Allies . | . . . Largest Group . | . . . Highest-Rated Group . | . . . Highest-Rated Ally . | . . . Total Orders . | . . . Ally Attacks . | . . . Total Damage . | . . . Kills . | . . . Allies Corrupted . | . . . Allies Melted . | . . . Intel | -11 -10 -10 ------- Run | Yrd Mat Sub Active Infowar (turns) 1041 | 54 746 241 Sensors 64 | . . 64 Terrain 977 | 54 746 177 Robot Analysis Total . | . . . Derelict Logs Recovered . | . . . Drone Launches . | . . . Drone Recoveries . | . . . Exploration | -11 -10 -10 ------------- Run | Yrd Mat Sub Turns Passed 1136 | 131 746 259 Spaces Moved 620 | 72 406 142 Core 17 | 16 . 1 Treads 603 | 56 406 141 Legs . | . . . Wheels . | . . . Hover . | . . . Flight . | . . . Fastest Speed 50 | 50 160 160 Average Speed 157 | 135 160 162 Slowest Speed 450 | 160 160 450 Overloaded Moves . | . . . Propulsion Burnouts . | . . . Robots Hopped . | . . . Potential Cave-ins . | . . . Cave-ins Triggered . | . . . Exploration Rate (%) 24 | 5 58 10 Regions Visited 2 Branch Regions 1 Pre-discovered Areas . | . . . Known Exits Taken . | . . . Unknown Exits Taken 2 | 1 1 . Scrap Searched . | . . . Spaces Dug . | . . . Terrain Destroyed 153 | . 117 36 Melee . | . . . Projectile . | . . . AOE 153 | . 117 36 Terrain Rammed . | . . . Walls Destroyed . | . . . Machines Disabled . | . . . Actions | -11 -10 -10 --------- Run | Yrd Mat Sub Total 719 | 98 461 160 Wait . | . . . Move 618 | 71 405 142 Hop . | . . . Pick Up 33 | 13 17 3 Fast Attach . | . . . Attach 12 | 7 1 4 Detach 1 | . . 1 Swap 7 | . 7 . Drop 12 | 1 8 3 Fire 29 | 3 21 5 Melee . | . . . Ram . | . . . Kick . | . . . Crush 7 | 3 2 2 Escape Stasis . | . . . Rewire . | . . . Trap . | . . . Miscellaneous . | . . . Route ------- -11/Scrapyard -10/Materials (discovered 2 exits: [*Mat] / [*Sub]) -10/Subcaves History --------- Turn | Location | Event 14 | -11/Scrapyard | Discovered new exit (range 15) 132 | -11/Scrapyard | Entered Materials 312 | -10/Materials | Build established: Mutant 480 | -10/Materials | Discovered new exit (range 16) 667 | -10/Materials | Repaired Rocket Launcher 756 | -10/Materials | Discovered new exit (range 9) 878 | -10/Materials | Entered Subcaves 1035 | -10/Subcaves | Core integrity fell below 50% 1079 | -10/Subcaves | Ambushed by swarm of Subdwellers 1131 | -10/Subcaves | Core integrity fell below 20% 1134 | -10/Subcaves | Lost 5 allies 1137 | -10/Subcaves | Destroyed by IW-3ZR(R) with Subdweller Laser Last Messages --------------- Dropped Humpback. Acquired Sub. Beam Cannon. The unstable cave ceiling collapses. Subatomizers dissect the Disposable Heat Sink. A mess of Twisted Machinery falls from the cavern ceiling. Z0-NNF(h): "The Subs are coming!" EP-S3Q(R) emerges from the Twisted Machinery. WV-GKB(R) emerges from the Twisted Machinery. QK-RZE(R) emerges from the Twisted Machinery. Ion Engine destroyed. Sensor Array destroyed. Lgt. Treads destroyed. Slammed into JO-XDA(R). JO-XDA(R) knocked back. JO-XDA(R) destroyed. Lgt. Treads destroyed. Acquired 29 matter. Assault Rifle destroyed. 5Q-163(R) destroyed. Map ----- +----------------------------------------------------+ | #????????????????????????????????????????????? | | ###????????????????????????????????????????????? | | #????????#?????????????????????????????????????? | | ##??????????????????????????????????????????????? | | #???????#??????????????????????????????????????? | | ###????? #??????????????????????????????????????? | | #????? #??????????????????????????????????????? | | ####??? #??????????????????????????????????????? | | #?# #??????????????????????????????????????? | | #?# #??????????????????????????????????????? | | ## #??????????????????????????????????????? | | #?#?????????????????????????????????????? | | ##???????????????????????????????????????? | | ##?#?#?#??????????????????????????????????? | | ###????? ###????????????##??????????????????? | | ###??#### ??????????## #??????????????????? | | " #?## ???????????# #??????????????????? | | " #?# ????????????# ##?????????????????? | | " ### ??????????????# #?????????????????? | | ## " # #??????????????## #?????????????????? | | # ##?????????#?### #??????????????????? | | # ####??????# # #???????????????????? | | # # # #???????#;# ##????? ???????????? | | !!&& ##?????##; ##?### ??????????? | | !! #?#?### ## #?????????????? | | #???# @& #??????????????? | | ##??# & #??????????????? | | ### ####""""" ##?# #######??????????????? | | ??###??#" "" #?# RR ###????????????????????? | | ??? #??#" ## ## &R& #??????????????????????? | | ??????? " ### ## ##????????????????????? | | ??????##" #?## ##???????????????????? | | ???? ??# ??# #???????????????????? | | ???????## #??# #??????????????????? | | ???????# ??## ##??????????????????? | | ?????? ? #??# ##???????????????????? | | ???????? ?? ##????????????????????? | | ????????# ? ##?????????????????????? | | ?????????### # ###### ##??????????????????????? | | ???????????#####?????#####???????????????????????? | | ??#??????????????????????????????????????????????? | | ?????????????????????????????????????????????????? | | ?????????????????????????????????????????????????? | | ?????????????????????????????????????????????????? | | ?????????????????????????????????????????????????? | | ?????????????????????????????????????????????????? | | ?????????????????????????????????????????????????? | | ?????????????????????????????????????????????????? | | ?????????????????????????????????????????????????? | | ?????????????????????????????????????????????????? | +----------------------------------------------------+ Best States ------------- Heat Dissipation 25 Energy Generation 10 Energy Capacity 250 Matter Stores 293 Matter Capacity 300 Sight Range 16 Robot Scan Range 14 Terrain Scan Range 16 Terrain Scan Density 10 Evasion (%) 50 Recoil Reduction 2 Item Schematics ----------------- None Robot Schematics ------------------ None Fabricated ------------ Nothing Repaired ---------- Rocket Launcher | 47% | -10/Materials Studied --------- None Alien Tech Used ----------------- None Achievements -------------- None Challenges ------------ None Game ------ Seed TripodPartitionDoublenader Manual? 0 Play Time 00:16:11 Cumulative 4.7 hours Start 2025.12.26 @ 06:35:03 End 2025.12.26 @ 06:51:58 Sessions 1 Manual Loads 0 Difficulty Rogue Special Mode None Game No. 10 Rogue 10 Adventurer 0 Explorer 0 Win Type - Total 0 Types 0/0/0/0/0/0/0/0/0/0 Lore% 1 Gallery% 8 Achievement% 10 Wizard Run 0 Options --------- Layout 1 ASCII 0 Keyboard 0 Movement Arrows Keybinds 0 Fullscreen 1 Font 16/SmallcapsGlow Map View 55x38 Zoom Use 0% Tactical HUD 0 Map Filters NONE Filters NONE Steam 1 RUN: 634f4e32-0f99-4947-a41f-368aa425d6e1